fUSD/lending_fUSD_20241227
["ID","MTS","AMOUNT","RATE_DAILY","PERIOD"]
[346885850,1735341038098,-500.0,0.00010762,2]
[346885851,1735341038107,-500.0,0.00010762,2]
[346885852,1735341038118,-500.0,0.00010762,2]
[346885853,1735341038128,-500.0,0.00010762,2]
[346885854,1735341038138,-500.0,0.00010762,2]
[346885855,1735341038147,-500.0,0.00010762,2]
[346885856,1735341038157,-500.0,0.00010762,2]
[346885857,1735341038167,-500.0,0.00010762,2]
[346885858,1735341038176,-500.0,0.00010762,2]
[346885859,1735341038186,-500.0,0.00010762,2]
[346885860,1735341038195,-384.05243652,0.00010762,2]
[346885861,1735341038204,-500.0,0.00010762,2]
[346885862,1735341038213,-500.0,0.00010762,2]
[346885863,1735341038222,-500.0,0.00010762,2]
[346885864,1735341038232,-500.0,0.00010762,2]
[346885865,1735341038242,-500.0,0.00010762,2]
[346885866,1735341038252,-500.0,0.00010762,2]
[346885867,1735341038262,-500.0,0.00010762,2]
[346885868,1735341038272,-500.0,0.00010762,2]
[346885869,1735341038282,-500.0,0.00010762,2]
[346885870,1735341038295,-500.0,0.00010762,2]
[346885871,1735341038305,-500.0,0.00010762,2]
[346885872,1735341038315,-500.0,0.00010762,2]
[346885873,1735341038325,-500.0,0.00010762,2]
[346885874,1735341038335,-500.0,0.00010762,2]
[346885875,1735341038345,-500.0,0.00010762,2]
[346885876,1735341038354,-500.0,0.00010762,2]
[346885877,1735341038364,-500.0,0.00010762,2]
[346885878,1735341038374,-500.0,0.00010762,2]
[346885879,1735341038384,-500.0,0.00010762,2]
[346885880,1735341038393,-500.0,0.00010762,2]
[346885881,1735341038403,-500.0,0.00010762,2]
[346885882,1735341038412,-500.0,0.00010762,2]
[346885883,1735341038422,-500.0,0.00010762,2]
[346885884,1735341038432,-500.0,0.00010762,2]
[346885885,1735341038442,-500.0,0.00010762,2]
[346885886,1735341038451,-588.61,0.00010762,2]
[346885887,1735341038461,-420.0,0.00010831,2]
[346885888,1735341038471,-700.0,0.00010852,2]
[346885889,1735341038481,-1400.0,0.00010852,2]
[346885890,1735341038490,-3889.0,0.00010878,2]
[346885891,1735341038499,-1171.0,0.00010878,2]
[346885892,1735341038509,-252.779,0.00010878,2]
[346885893,1735341038519,-464.38,0.00010899,2]
[346885894,1735341038528,-187.99806169,0.000109,2]
[346885895,1735341038540,-300.0,0.000109,3]
[346885896,1735341038549,-702.2,0.0001091,2]
[346885897,1735341038559,-1276.99,0.0001091,2]
[346885898,1735341038568,-924.59,0.0001091,2]
[346885899,1735341038578,-3955.04,0.0001091,2]
[346885900,1735341038588,-2796.68,0.0001091,2]
[346885901,1735341038599,-500.0,0.0001091,2]
[346885902,1735341038609,-1139.22,0.0001091,2]
[346885903,1735341038618,-975.3,0.00010911,2]
[346885904,1735341038628,-1984.69,0.00010911,2]
[346885905,1735341038638,-981.61,0.00010911,2]
[346885906,1735341038647,-2250.34,0.00010911,2]
[346885907,1735341038657,-1081.95,0.00010911,2]
[346885908,1735341038667,-3879.81,0.00010911,2]
[346885909,1735341038677,-1159.58,0.00010911,2]
[346885910,1735341038686,-1720.39,0.00010911,2]
[346885911,1735341038695,-500.0,0.00010911,2]
[346885912,1735341038704,-1199.1,0.00010911,2]
[346885913,1735341038714,-1370.49,0.00010911,2]
[346885914,1735341038723,-2761.82,0.00010911,2]
[346885915,1735341038733,-870.21,0.00010911,2]
[346885916,1735341038742,-1050.84,0.00010911,2]
[346885917,1735341038752,-150.0,0.00010959,2]
[346885918,1735341038762,-1000.0,0.00010968,2]
[346885919,1735341038771,-500.0,0.00010998,2]
[346885920,1735341038781,-500.0,0.00010998,2]
[346885921,1735341038795,-990.77,0.00011033,2]
[346885922,1735341038807,-500.0,0.00011033,2]
[346885923,1735341038816,-3238.53,0.00011033,2]
[346885924,1735341038825,-931.56,0.00011033,2]
[346885925,1735341038835,-1217.65,0.00011033,2]
[346885926,1735341038845,-674.77,0.00011033,2]
[346885927,1735341038854,-1312.71,0.00011033,2]
[346885928,1735341038864,-500.0,0.00011033,2]
[346885929,1735341038874,-500.0,0.00011033,2]
[346885930,1735341038884,-1264.26,0.00011033,2]
[346885931,1735341038893,-500.0,0.00011033,2]
[346885932,1735341038903,-500.0,0.00011033,2]
[346885933,1735341038912,-500.0,0.00011033,2]
[346885934,1735341038922,-885.37,0.00011033,2]
[346885935,1735341038931,-500.0,0.00011034,2]
[346885936,1735341038940,-500.0,0.00011034,2]
[346885937,1735341038949,-500.0,0.00011034,2]
[346885938,1735341038959,-500.0,0.00011034,2]
[346885939,1735341038969,-500.0,0.00011034,2]
[346885940,1735341038978,-500.0,0.00011034,2]
[346885941,1735341038987,-500.0,0.00011034,2]
[346885942,1735341038997,-500.0,0.00011034,2]
[346885943,1735341039006,-500.0,0.00011034,2]
[346885944,1735341039015,-500.0,0.00011034,2]
[346885945,1735341039025,-500.0,0.00011034,2]
[346885946,1735341039034,-500.0,0.00011034,2]
[346885947,1735341039044,-500.0,0.00011034,2]
[346885948,1735341039053,-500.0,0.00011034,2]
[346885949,1735341039063,-500.0,0.00011034,2]
[346885950,1735341039072,-500.0,0.00011034,2]
[346885951,1735341039081,-500.0,0.00011034,2]
[346885952,1735341039090,-500.0,0.00011034,2]
[346885953,1735341039100,-500.0,0.00011034,2]
[346885954,1735341039109,-500.0,0.00011034,2]
[346885955,1735341039118,-500.0,0.00011034,2]
[346885956,1735341039127,-500.0,0.00011034,2]
[346885957,1735341039137,-500.0,0.00011034,2]
[346885958,1735341039146,-500.0,0.00011034,2]
[346885959,1735341039156,-500.0,0.00011034,2]
[346885960,1735341039165,-500.0,0.00011034,2]
[346885961,1735341039175,-500.0,0.00011034,2]
[346885962,1735341039184,-500.0,0.00011034,2]
[346885963,1735341039194,-500.0,0.00011034,2]
[346885964,1735341039203,-500.0,0.00011034,2]
[346885965,1735341039213,-500.0,0.00011034,2]
[346885966,1735341039222,-500.0,0.00011034,2]
[346885967,1735341039231,-500.0,0.00011034,2]
[346885968,1735341039241,-500.0,0.00011034,2]
[346885969,1735341039251,-500.0,0.00011034,2]
[346885970,1735341039261,-500.0,0.00011034,2]
[346885971,1735341039270,-500.0,0.00011034,2]
[346885972,1735341039279,-1188.991758,0.00011034,2]
[346885973,1735341039290,-1171.853228,0.00011034,2]
[346885974,1735341039299,-500.0,0.00011034,2]
[346885975,1735341039308,-567.12,0.00011034,2]
[346885976,1735341039318,-500.0,0.00011034,2]
[346885977,1735341039327,-500.0,0.00011034,2]
[346885978,1735341039337,-500.0,0.00011034,2]
[346885979,1735341039348,-500.0,0.00011034,2]
[346885980,1735341039357,-500.0,0.00011034,2]
[346885981,1735341039367,-500.0,0.00011034,2]
[346885982,1735341039376,-500.0,0.00011034,2]
[346885983,1735341039386,-500.0,0.00011034,2]
[346885984,1735341039395,-500.0,0.00011034,2]
[346885985,1735341039404,-500.0,0.00011034,2]
[346885986,1735341039414,-500.0,0.00011034,2]
[346885987,1735341039423,-500.0,0.00011034,2]
[346885988,1735341039432,-500.0,0.00011034,2]
[346885989,1735341039443,-500.0,0.00011034,2]
[346885990,1735341039452,-500.0,0.00011034,2]
[346885991,1735341039462,-500.0,0.00011034,2]
[346885992,1735341039471,-500.0,0.00011034,2]
[346885993,1735341039480,-500.0,0.00011034,2]
[346885994,1735341039490,-500.0,0.00011034,2]
[346885995,1735341039499,-748.26,0.00011034,2]
[346885996,1735341039508,-2635.27,0.00011034,2]
[346885997,1735341039518,-506.7,0.00011034,2]
[346885998,1735341039527,-500.0,0.00011034,2]
[346885999,1735341039537,-500.0,0.00011034,2]
[346886000,1735341039546,-507.11295745,0.00011034,2]
[346886001,1735341039556,-500.0,0.00011034,2]
[346886002,1735341039565,-677.09,0.00011034,2]
[346886003,1735341039575,-500.0,0.00011034,2]
[346886004,1735341039585,-563.48,0.00011034,2]
[346886005,1735341039594,-500.0,0.00011034,2]
[346886006,1735341039603,-500.0,0.00011034,2]
[346886007,1735341039613,-500.0,0.00011034,2]
[346886008,1735341039622,-500.0,0.00011034,2]
[346886009,1735341039631,-1548.71,0.00011034,2]
[346886010,1735341039641,-500.0,0.00011034,2]
[346886011,1735341039650,-500.0,0.00011034,2]
[346886012,1735341039659,-500.0,0.00011034,2]
[346886013,1735341039668,-500.0,0.00011034,2]
[346886014,1735341039678,-719.39,0.00011034,2]
[346886015,1735341039687,-584.39,0.00011034,2]
[346886016,1735341039697,-500.0,0.00011034,2]
[346886017,1735341039706,-500.0,0.00011034,2]
[346886018,1735341039715,-500.0,0.00011034,2]
[346886019,1735341039725,-763.54,0.00011034,2]
[346886020,1735341039734,-816.14,0.00011034,2]
[346886022,1735341039743,-662.32,0.00011034,2]
[346886024,1735341039752,-500.0,0.00011034,2]
[346886026,1735341039762,-5656.45,0.00011034,2]
[346886028,1735341039771,-500.0,0.00011034,2]
[346886030,1735341039781,-500.0,0.00011034,2]
[346886032,1735341039791,-500.0,0.00011034,2]
[346886034,1735341039803,-546.43,0.00011034,2]
[346886036,1735341039812,-225.78,0.00011034,2]
[346886037,1735341039821,-500.0,0.00011034,2]
[346886038,1735341039831,-500.0,0.00011034,2]
[346886039,1735341039840,-500.0,0.00011034,2]
[346886040,1735341039849,-615.98,0.00011034,2]
[346886041,1735341039859,-500.0,0.00011034,2]
[346886042,1735341039868,-1955.83,0.00011034,2]
[346886043,1735341039877,-1490.33,0.00011034,2]
[346886044,1735341039886,-500.0,0.00011034,2]
[346886045,1735341039895,-500.0,0.00011034,2]
[346886046,1735341039904,-615.05,0.00011034,2]
[346886047,1735341039913,-693.81,0.00011034,2]
[346886048,1735341039923,-500.0,0.00011034,2]
[346886049,1735341039934,-500.0,0.00011034,2]
[346886050,1735341039945,-552.05,0.00011034,2]
[346886051,1735341039955,-593.43,0.00011034,2]
[346886052,1735341039964,-500.0,0.00011034,2]
[346886053,1735341039974,-500.0,0.00011034,2]
[346886054,1735341039983,-500.0,0.00011034,2]
[346886055,1735341039992,-500.0,0.00011034,2]
[346886056,1735341040175,-798.71,0.00011034,2]
[346886057,1735341040185,-500.0,0.00011034,2]
[346886058,1735341040195,-500.0,0.00011034,2]
[346886059,1735341040204,-1129.5,0.00011034,2]
[346886060,1735341040213,-808.51,0.00011034,2]
[346886061,1735341040223,-500.0,0.00011034,2]
[346886062,1735341040232,-512.87,0.00011034,2]
[346886063,1735341040241,-500.0,0.00011034,2]
[346886064,1735341040250,-3527.57,0.00011034,2]
[346886065,1735341040260,-500.0,0.00011034,2]
[346886066,1735341040269,-500.0,0.00011034,2]
[346886067,1735341040279,-500.0,0.00011034,2]
[346886068,1735341040289,-500.0,0.00011034,2]
[346886069,1735341040298,-538.73,0.00011034,2]
[346886070,1735341040308,-500.0,0.00011034,2]
[346886071,1735341040318,-589.53,0.00011034,2]
[346886072,1735341040327,-500.0,0.00011034,2]
[346886073,1735341040336,-603.25,0.00011034,2]
[346886074,1735341040346,-500.0,0.00011034,2]
[346886075,1735341040355,-500.0,0.00011034,2]
[346886076,1735341040364,-500.0,0.00011034,2]
[346886077,1735341040373,-500.0,0.00011034,2]
[346886078,1735341040383,-500.0,0.00011034,2]
[346886079,1735341040392,-500.0,0.00011034,2]
[346886080,1735341040401,-1074.09,0.00011034,2]
[346886081,1735341040412,-500.0,0.00011034,2]
[346886082,1735341040421,-500.0,0.00011034,2]
[346886083,1735341040430,-500.0,0.00011034,2]
[346886084,1735341040440,-500.0,0.00011034,2]
[346886085,1735341040449,-500.0,0.00011034,2]
[346886086,1735341040459,-5020.6,0.00011034,2]
[346886087,1735341040468,-664.73,0.00011034,2]
[346886088,1735341040477,-500.0,0.00011034,2]
[346886089,1735341040487,-581.5,0.00011034,2]
[346886090,1735341040496,-500.0,0.00011034,2]
[346886091,1735341040506,-500.0,0.00011034,2]
[346886092,1735341040516,-500.0,0.00011034,2]
[346886093,1735341040525,-600.62,0.00011034,2]
[346886094,1735341040535,-500.0,0.00011034,2]
[346886095,1735341040544,-504.1,0.00011034,2]
[346886096,1735341040554,-500.0,0.00011034,2]
[346886097,1735341040563,-621.55,0.00011034,2]
[346886098,1735341040572,-500.0,0.00011034,2]
[346886099,1735341040582,-500.0,0.00011034,2]
[346886100,1735341040591,-760.49,0.00011034,2]
[346886101,1735341040601,-522.42555791,0.00011034,2]
[346886102,1735341040610,-500.0,0.00011034,2]
[346886103,1735341040619,-500.0,0.00011034,2]
[346886104,1735341040629,-500.0,0.00011034,2]
[346886105,1735341040638,-954.89,0.00011034,2]
[346886106,1735341040647,-500.0,0.00011034,2]
[346886107,1735341040657,-632.63,0.00011034,2]
[346886108,1735341040667,-830.79,0.00011034,2]
[346886109,1735341040676,-500.0,0.00011034,2]
[346886110,1735341040686,-211.1711087,0.00011035,2]
[346886111,1735341040696,-500.0,0.00011035,2]
[346886112,1735341040706,-500.0,0.00011035,2]
[346886113,1735341040715,-500.0,0.00011035,2]
[346886114,1735341040725,-500.0,0.00011035,2]
[346886115,1735341040734,-500.0,0.00011035,2]
[346886116,1735341040744,-500.0,0.00011035,2]
[346886117,1735341040754,-500.0,0.00011035,2]
[346886118,1735341040763,-500.0,0.00011035,2]
[346886119,1735341040773,-500.0,0.00011035,2]
[346886120,1735341040783,-500.0,0.00011035,2]
[346886121,1735341040794,-500.0,0.00011035,2]
[346886122,1735341040807,-500.0,0.00011035,2]
[346886123,1735341040817,-500.0,0.00011035,2]
[346886124,1735341040827,-500.0,0.00011035,2]
[346886125,1735341040837,-500.0,0.00011035,2]
[346886126,1735341040846,-500.0,0.00011035,2]
[346886127,1735341040856,-500.0,0.00011035,2]
[346886128,1735341040867,-500.0,0.00011035,2]
[346886129,1735341040877,-502.92,0.00011035,2]
[346886130,1735341040887,-500.0,0.00011035,2]
[346886131,1735341040896,-500.0,0.00011035,2]
[346886132,1735341040905,-500.0,0.00011035,2]
[346886133,1735341040914,-500.0,0.00011035,2]
[346886134,1735341040924,-500.0,0.00011035,2]
[346886135,1735341040933,-500.0,0.00011035,2]
[346886136,1735341040943,-500.0,0.00011035,2]
[346886137,1735341040952,-500.0,0.00011035,2]
[346886138,1735341040961,-500.0,0.00011035,2]
[346886139,1735341040970,-500.0,0.00011035,2]
[346886140,1735341040980,-500.0,0.00011035,2]
[346886141,1735341040989,-500.0,0.00011035,2]
[346886142,1735341041000,-500.0,0.00011035,2]
[346886143,1735341041009,-648.69855804,0.00011035,2]
[346886144,1735341041018,-500.0,0.00011035,2]
[346886145,1735341041028,-500.0,0.00011035,2]
[346886146,1735341041039,-500.0,0.00011035,2]
[346886147,1735341041048,-500.0,0.00011035,2]
[346886148,1735341041057,-500.0,0.00011035,2]
[346886149,1735341041067,-500.0,0.00011035,2]
[346886150,1735341041077,-335.25,0.00011035,2]
[346886151,1735341041087,-500.0,0.00011035,2]
[346886152,1735341041096,-500.0,0.00011035,2]
[346886154,1735341041106,-500.0,0.00011035,2]
[346886156,1735341041116,-500.0,0.00011035,2]
[346886158,1735341041126,-500.0,0.00011035,2]
[346886159,1735341041136,-500.0,0.00011035,2]
[346886162,1735341041145,-500.0,0.00011035,2]
[346886163,1735341041155,-500.0,0.00011035,2]
[346886165,1735341041165,-500.0,0.00011035,2]
[346886167,1735341041175,-500.0,0.00011035,2]
[346886169,1735341041185,-500.0,0.00011035,2]
[346886172,1735341041194,-500.0,0.00011035,2]
[346886174,1735341041204,-625.83,0.00011035,2]
[346886175,1735341041213,-500.0,0.00011035,2]
[346886178,1735341041223,-500.0,0.00011035,2]
[346886180,1735341041232,-539.95,0.00011035,2]
[346886182,1735341041242,-500.0,0.00011035,2]
[346886184,1735341041251,-500.0,0.00011035,2]
[346886186,1735341041261,-517.36,0.00011035,2]
[346886188,1735341041270,-500.0,0.00011035,2]
[346886190,1735341041280,-500.0,0.00011035,2]
[346886192,1735341041290,-500.0,0.00011035,2]
[346886194,1735341041299,-534.98,0.00011035,2]
[346886196,1735341041309,-500.0,0.00011035,2]
[346886198,1735341041318,-500.0,0.00011035,2]
[346886200,1735341041328,-500.0,0.00011035,2]
[346886202,1735341041337,-500.0,0.00011035,2]
[346886204,1735341041347,-500.0,0.00011035,2]
[346886206,1735341041356,-830.85,0.00011035,2]
[346886208,1735341041366,-500.0,0.00011035,2]
[346886210,1735341041377,-645.55,0.00011035,2]
[346886212,1735341041387,-595.49,0.00011035,2]
[346886214,1735341041396,-500.0,0.00011035,2]
[346886216,1735341041406,-655.24,0.00011035,2]
[346886218,1735341041415,-500.0,0.00011035,2]
[346886220,1735341041425,-500.0,0.00011035,2]
[346886222,1735341041434,-500.0,0.00011035,2]
[346886224,1735341041444,-576.08,0.00011035,2]
[346886226,1735341041454,-500.0,0.00011035,2]
[346886228,1735341041464,-500.0,0.00011035,2]
[346886230,1735341041473,-500.0,0.00011035,2]
[346886232,1735341041483,-500.0,0.00011035,2]
[346886234,1735341041493,-500.0,0.00011035,2]
[346886236,1735341041502,-980.2,0.00011035,2]
[346886238,1735341041512,-500.0,0.00011036,2]
[346886240,1735341041521,-500.0,0.00011036,2]
[346886242,1735341041531,-500.0,0.00011036,2]
[346886244,1735341041541,-500.0,0.00011036,2]
[346886246,1735341041550,-500.0,0.00011036,2]
[346886248,1735341041560,-500.0,0.00011036,2]
[346886250,1735341041570,-500.0,0.00011036,2]
[346886252,1735341041579,-500.0,0.00011036,2]
[346886254,1735341041589,-500.0,0.00011036,2]
[346886256,1735341041599,-500.0,0.00011036,2]
[346886258,1735341041609,-500.0,0.00011036,2]
[346886260,1735341041619,-500.0,0.00011036,2]
[346886263,1735341041628,-500.0,0.00011036,2]
[346886265,1735341041639,-500.0,0.00011036,2]
[346886267,1735341041648,-500.0,0.00011036,2]
[346886269,1735341041657,-500.0,0.00011036,2]
[346886271,1735341041667,-500.0,0.00011036,2]
[346886272,1735341041677,-500.0,0.00011036,2]
[346886275,1735341041687,-500.0,0.00011036,2]
[346886277,1735341041698,-500.0,0.00011036,2]
[346886279,1735341041707,-500.0,0.00011036,2]
[346886281,1735341041716,-500.0,0.00011036,2]
[346886283,1735341041725,-500.0,0.00011036,2]
[346886285,1735341041734,-500.0,0.00011036,2]
[346886286,1735341041744,-500.0,0.00011036,2]
[346886289,1735341041753,-500.0,0.00011036,2]
[346886290,1735341041763,-500.0,0.00011036,2]
[346886292,1735341041773,-500.0,0.00011036,2]
[346886294,1735341041782,-500.0,0.00011036,2]
[346886297,1735341041793,-500.0,0.00011036,2]
[346886299,1735341041805,-500.0,0.00011036,2]
[346886301,1735341041814,-500.0,0.00011036,2]
[346886303,1735341041823,-385.1100024,0.00011036,2]
[346886305,1735341041832,-500.0,0.00011036,2]
[346886307,1735341041842,-500.0,0.00011036,2]
[346886309,1735341041851,-500.0,0.00011036,2]
[346886311,1735341041860,-588.61,0.00011036,2]
[346886313,1735341041869,-1264.0,0.00011111,2]
[346886314,1735341041878,-1151.888,0.00011111,2]
[346886317,1735341041888,-633.0,0.00011111,2]
[346886319,1735341041897,-150.0,0.00011111,2]
[346886321,1735341041907,-565.0,0.00011111,2]
[346886323,1735341041916,-1900.0,0.00011111,2]
[346886325,1735341041926,-923.0,0.00011111,2]
[346886327,1735341041935,-819.0,0.00011111,2]
[346886329,1735341041944,-3772.0,0.00011111,2]
[346886330,1735341041954,-1256.0,0.00011111,2]
[346886332,1735341041964,-3685.0,0.00011111,2]
[346886334,1735341041973,-536.0,0.00011111,2]
[346886336,1735341041983,-500.0,0.00011183,2]
[346886338,1735341041992,-702.2,0.00011184,2]
[346886340,1735341042001,-1276.99,0.00011184,2]
[346886342,1735341042011,-924.59,0.00011184,2]
[346886344,1735341042020,-3955.04,0.00011184,2]
[346886346,1735341042030,-2796.68,0.00011184,2]
[346886349,1735341042041,-500.0,0.00011184,2]
[346886350,1735341042050,-1139.22,0.00011184,2]
[346886351,1735341042060,-975.3,0.00011185,2]
[346886352,1735341042069,-1984.69,0.00011185,2]
[346886353,1735341042079,-981.61,0.00011185,2]
[346886354,1735341042089,-2250.34,0.00011185,2]
[346886355,1735341042099,-1081.95,0.00011185,2]
[346886356,1735341042109,-3879.81,0.00011185,2]
[346886357,1735341042119,-1159.58,0.00011185,2]
[346886359,1735341042129,-1720.39,0.00011185,2]
[346886361,1735341042138,-500.0,0.00011185,2]
[346886363,1735341042147,-1199.1,0.00011185,2]
[346886365,1735341042157,-1370.49,0.00011185,2]
[346886367,1735341042166,-2761.82,0.00011185,2]
[346886369,1735341042176,-870.21,0.00011185,2]
[346886372,1735341042185,-1050.84,0.00011185,2]
[346886373,1735341042195,-500.0,0.00011272,2]
[346886375,1735341042204,-500.0,0.00011272,2]
[346886377,1735341042214,-878.02,0.00011272,2]
[346886379,1735341042223,-2483.69,0.00011284,2]
[346886381,1735341042233,-1951.55,0.00011284,2]
[346886383,1735341042242,-10643.23,0.00011284,2]
[346886386,1735341042252,-1368.58,0.00011284,2]
[346886388,1735341042262,-696.72,0.00011284,2]
[346886390,1735341042271,-817.28,0.00011284,2]
[346886392,1735341042280,-1122.56,0.00011284,2]
[346886393,1735341042290,-7642.03,0.00011284,2]
[346886395,1735341042299,-500.0,0.00011284,2]
[346886397,1735341042308,-973.63,0.00011284,2]
[346886399,1735341042318,-755.14,0.00011284,2]
[346886402,1735341042328,-678.23,0.00011284,2]
[346886404,1735341042337,-1583.08,0.00011284,2]
[346886405,1735341042346,-500.0,0.00011284,2]
[346886407,1735341042356,-1000.0,0.00011284,2]
[346886409,1735341042366,-710.17,0.00011284,2]
[346886411,1735341042375,-500.0,0.00011284,2]
[346886414,1735341042385,-1971.35,0.00011284,2]
[346886415,1735341042395,-997.14,0.00011284,2]
[346886418,1735341042405,-26212.30096548,0.00011287,2]
[346886420,1735341042415,-537.11,0.000113,2]
[346886422,1735341042425,-200.0,0.00011307,2]
[346886424,1735341042435,-276.125887,0.00011307,2]
[346886426,1735341042444,-990.77,0.00011307,2]
[346886428,1735341042454,-500.0,0.00011307,2]
[346886430,1735341042463,-3238.53,0.00011307,2]
[346886432,1735341042473,-931.56,0.00011307,2]
[346886434,1735341042483,-1217.65,0.00011307,2]
[346886442,1735341042549,-674.77,0.00011307,2]
[346886444,1735341042558,-1312.71,0.00011307,2]
[346886446,1735341042569,-500.0,0.00011307,2]
[346886448,1735341042578,-500.0,0.00011307,2]
[346886450,1735341042588,-1264.26,0.00011307,2]
[346886451,1735341042597,-500.0,0.00011307,2]
[346886453,1735341042607,-500.0,0.00011307,2]
[346886455,1735341042616,-500.0,0.00011307,2]
[346886457,1735341042626,-885.37,0.00011307,2]
[346886460,1735341042635,-191.0778891,0.00011308,2]
[346886462,1735341042645,-500.0,0.00011308,2]
[346886464,1735341042654,-500.0,0.00011308,2]
[346886466,1735341042663,-282.40381808,0.00011308,2]
[346886468,1735341042673,-500.0,0.00011308,2]
[346886470,1735341042682,-500.0,0.00011308,2]
[346886472,1735341042692,-500.0,0.00011308,2]
[346886473,1735341042701,-500.0,0.00011308,2]
[346886476,1735341042711,-500.0,0.00011308,2]
[346886477,1735341042721,-500.0,0.00011308,2]
[346886480,1735341042730,-500.0,0.00011308,2]
[346886481,1735341042740,-500.0,0.00011308,2]
[346886483,1735341042749,-500.0,0.00011308,2]
[346886485,1735341042758,-161.83714016,0.00011308,2]
[346886487,1735341042767,-500.0,0.00011308,2]
[346886489,1735341042777,-500.0,0.00011308,2]
[346886491,1735341042787,-500.0,0.00011308,2]
[346886493,1735341042799,-500.0,0.00011308,2]
[346886495,1735341042808,-500.0,0.00011308,2]
[346886497,1735341042818,-500.0,0.00011308,2]
[346886499,1735341042827,-500.0,0.00011308,2]
[346886501,1735341042836,-500.0,0.00011308,2]
[346886503,1735341042846,-500.0,0.00011308,2]
[346886505,1735341042855,-500.0,0.00011308,2]
[346886507,1735341042863,-500.0,0.00011308,2]
[346886509,1735341042874,-500.0,0.00011308,2]
[346886511,1735341042895,-500.0,0.00011308,2]
[346886513,1735341042907,-500.0,0.00011308,2]
[346886515,1735341042916,-500.0,0.00011308,2]
[346886517,1735341042925,-500.0,0.00011308,2]
[346886519,1735341042935,-500.0,0.00011308,2]
[346886521,1735341042944,-500.0,0.00011308,2]
[346886523,1735341042953,-500.0,0.00011308,2]
[346886525,1735341042963,-500.0,0.00011308,2]
[346886527,1735341042972,-500.0,0.00011308,2]
[346886529,1735341042981,-500.0,0.00011308,2]
[346886531,1735341042990,-500.0,0.00011308,2]
[346886533,1735341043000,-1188.991758,0.00011308,2]
[346886535,1735341043009,-1171.853228,0.00011308,2]
[346886537,1735341043018,-500.0,0.00011308,2]
[346886539,1735341043027,-500.0,0.00011308,2]
[346886541,1735341043037,-567.12,0.00011308,2]
[346886543,1735341043047,-500.0,0.00011308,2]
[346886545,1735341043056,-500.0,0.00011308,2]
[346886547,1735341043067,-500.0,0.00011308,2]
[346886549,1735341043076,-500.0,0.00011308,2]
[346886551,1735341043085,-500.0,0.00011308,2]
[346886553,1735341043095,-500.0,0.00011308,2]
[346886555,1735341043104,-500.0,0.00011308,2]
[346886557,1735341043114,-500.0,0.00011308,2]
[346886559,1735341043124,-500.0,0.00011308,2]
[346886561,1735341043133,-500.0,0.00011308,2]